Cogmind - Beta 10.1 @@@ ROGUE MODE // 2020.10.05 @ 16:12:52 // Winter2019/RPGLIKE Player: Hermelin Result: Destroyed by Lightning with EMDS Performance ------------- Evolutions (5) 2500 Regions Visited (23) 4600 Robots Destroyed (415) 2075 Value Destroyed (16221) 16221 Prototype IDs (78) 1560 Alien Tech Used (0) 0 Bonus (4109) 4109 TOTAL SCORE: 31065 Bonus ------- High Alert Combat Kills 982 Follower Combat Kills 733 Entered Garrisons 1200 Used RIF Installer 3000 Network Hubs Disabled 600 Aligned with FarCom 300 Met R17 at Cetus 500 Friendly Fire -3206 Cogmind --------- Core Integrity 0/900 Matter 300/300 Energy 1135/1135 System Corruption 8% Temperature Cool (35) Movement Hovering (52) Location -5/Hub_04(d) Parts ------- > --- POWER (3) -------- Cold Fusion Reactor Cold Fusion Reactor Compact Particle Reactor > --- PROPULSION (4) --- Combat Gravmag System Improved Linear Gravjet Antigrav Array > --- UTILITY (10) ----- Advanced Energy Well Advanced Signal Interpreter Advanced Terrain Scanner Advanced Core Analyzer Improved Armor Integrity Analyzer Advanced Transmission Jammer Medium Regenerative Plating Advanced Hacking Suite Advanced Hacking Suite Advanced System Shield > --- WEAPON (4) ------- Phasing Sabre Phasing Sabre Phasing Sabre Longsword +1 > --- INVENTORY (7) ---- Microactuators Actuator Array Advanced Shield Generator Relay Coupler [NC] (58) System Backup Module Field Lobotomy Kit Peak State ------------ > --- POWER ------------ Cold Fusion Reactor Cold Fusion Reactor Compact Particle Reactor > --- PROPULSION ------- Combat Gravmag System Improved Linear Gravjet Antigrav Array > --- UTILITY ---------- Advanced Energy Well Advanced Signal Interpreter Advanced Terrain Scanner Advanced Core Analyzer Improved Armor Integrity Analyzer Advanced Transmission Jammer Medium Regenerative Plating Advanced Hacking Suite Advanced Hacking Suite Advanced System Shield > --- WEAPON ----------- Phasing Sabre Phasing Sabre Phasing Sabre Longsword +1 > --- INVENTORY -------- Microactuators Actuator Array Advanced Shield Generator Relay Coupler [NC] System Backup Module Field Lobotomy Kit [Rating: 137] Favorites ----------- Power Cold Fusion Reactor Engine Light Deuterium Engine Power Core Light Neutrino Core Reactor Cold Fusion Reactor Propulsion Combat Airjet Treads Light Treads Hover Unit Combat Airjet Utility Light Armor Plating Device Advanced Transmission Jammer Storage Advanced Energy Well Processor Advanced Core Analyzer Hackware Relay Coupler [Behemoth] Protection Light Armor Plating Weapon Longsword +1 Energy Gun Arc Projector Ballistic Gun Assault Rifle Launcher Rocket Launcher Special Weapon Remote Datajack Impact Weapon Powered Hammer Slashing Weapon Longsword +1 Piercing Weapon Makeshift Spear Special Melee Weapon Improved Datajack Build | -11 -10 -10 -9 -9 -9 -8 -8 -8 -8 -8 -7 -7 -7 -7 -6 -6 -5 -5 -5 -5 -5 -5 -5 ------- Run | Scr Mat Min Mat Min Exi Min Mat Gar Mat Gar Fac Gar Fac Gar Fac Gar Fac Gar Fac Ext Cet Arc Hub Slots Evolved 17 | 3 2 1 3 . . 2 2 . . . . . 1 . . . . 1 1 1 . . . Power 2 | . . . . . . 1 . . . . . . . . . . . . 1 . . . . Propulsion 3 | 1 . . . . . 1 . . . . . . . . . . . . . 1 . . . Utility 9 | 1 1 1 3 . . . 1 . . . . . 1 . . . . 1 . . . . . Weapon 3 | 1 1 . . . . . 1 . . . . . . . . . . . . . . . . Parts Attached 167 | 8 9 3 27 7 20 . 19 1 3 2 16 1 1 2 . 3 1 5 10 19 2 4 4 Power 14 | 2 . . . . 1 . 3 . . . 2 . . . . . . . 3 3 . . . Engine 3 | 2 . . . . . . 1 . . . . . . . . . . . . . . . . Core 3 | . . . . . . . 2 . . . . . . . . . . . 1 . . . . Reactor 8 | . . . . . 1 . . . . . 2 . . . . . . . 2 3 . . . Propulsion 27 | 2 2 . 3 1 4 . 2 . . . 5 . . . . . . . 5 3 . . . Treads 4 | 2 . . . 1 1 . . . . . . . . . . . . . . . . . . Leg . | . . . . . . . . . . . . . . . . . . . . . . . . Wheel . | . . . . . . . . . . . . . . . . . . . . . . . . Hover 23 | . 2 . 3 . 3 . 2 . . . 5 . . . . . . . 5 3 . . . Flight . | . . . . . . . . . . . . . . . . . . . . . . . . Utility 68 | 2 3 2 9 1 7 . 8 1 1 1 8 1 1 2 . 3 1 2 2 3 2 4 4 Device 31 | 1 2 . . . 4 . 2 . 1 . 5 1 1 2 . 3 1 1 1 1 . 4 1 Storage 6 | 1 1 1 . . . . 1 1 . . . . . . . . . . . 1 . . . Processor 4 | . . . . . 2 . 2 . . . . . . . . . . . . . . . . Hackware 5 | . . . 1 . . . . . . . . . . . . . . 1 . . . . 3 Protection 22 | . . 1 8 1 1 . 3 . . 1 3 . . . . . . . 1 1 2 . . Artifact . | . . . . . . . . . . . . . . . . . . . . . . . . Weapon 58 | 2 4 1 15 5 8 . 6 . 2 1 1 . . . . . . 3 . 10 . . . Energy Gun 8 | . 1 . 4 1 . . 2 . . . . . . . . . . . . . . . . Energy Cannon . | . . . . . . . . . . . . . . . . . . . . . . . . Ballistic Gun 18 | 2 1 . 8 2 4 . 1 . . . . . . . . . . . . . . . . Ballistic Cannon . | . . . . . . . . . . . . . . . . . . . . . . . . Launcher 9 | . 2 1 3 2 1 . . . . . . . . . . . . . . . . . . Special Weapon 3 | . . . . . 1 . . . . . . . . . . . . 1 . 1 . . . Impact Weapon 3 | . . . . . . . . . 1 . 1 . . . . . . 1 . . . . . Slashing Weapon 9 | . . . . . 1 . 1 . . 1 . . . . . . . . . 6 . . . Piercing Weapon 4 | . . . . . 1 . . . 1 . . . . . . . . . . 2 . . . Special Melee Weapon 4 | . . . . . . . 2 . . . . . . . . . . 1 . 1 . . . Unidentified Prototypes 7 | . . . 1 . . . 2 . . . 2 . . . . . . . 1 . 1 . . Parts Lost 4 | . . . . . 1 . 1 . . . 1 . . . . . . 1 . . . . . Power . | . . . . . . . . . . . . . . . . . . . . . . . . Propulsion 1 | . . . . . . . . . . . 1 . . . . . . . . . . . . Utility 3 | . . . . . 1 . 1 . . . . . . . . . . 1 . . . . . Weapon . | . . . . . . . . . . . . . . . . . . . . . . . . Highest Loss Streak 1 | . . . . . 1 . 1 . . . 1 . . . . . . 1 . . . . . Average Slot Usage (%) 95 | . 99 99 98 100 92 81 94 100 100 98 93 94 94 94 94 94 94 93 94 98 95 95 95 Engine 2 | . 12 10 7 7 5 . . . . . . . . . . . . . . . . . . Core 1 | . . . . . . . 4 5 5 5 4 . . . . . . . . . . . . Reactor 6 | . . . . . 1 6 5 5 5 5 5 11 11 11 11 11 11 10 13 14 14 14 14 Treads 1 | . 1 . . 6 10 . . . . . . . . . . . . . . . . . . Hover 14 | . 24 20 15 7 4 13 17 17 17 17 16 17 16 16 16 16 16 15 14 14 14 14 14 Device 21 | . 16 20 15 15 19 20 23 17 18 23 22 23 26 27 27 27 27 26 25 27 23 23 18 Storage 1 | . 12 10 3 . . . . 5 4 . . . . . . . . . . . 4 4 4 Processor 10 | . . . . . 1 13 12 17 17 17 17 17 16 16 16 16 16 15 15 14 14 14 14 Protection 9 | . . 9 23 38 24 6 5 5 5 5 5 5 5 5 5 5 5 4 4 4 4 4 4 Energy Gun 2 | . 2 10 7 7 7 6 1 . . . . . . . . . . . . . . . . Ballistic Gun 5 | . 25 12 15 14 11 . . . . . . . . . . . . . . . . . . Impact Weapon 1 | . . . . . . . . . 2 3 . 5 5 5 5 5 5 4 5 . . . . Slashing Weapon 7 | . . . . . . 6 8 11 11 11 11 11 11 11 11 11 11 10 10 16 19 19 19 Piercing Weapon 1 | . . . . . . 6 5 5 5 5 4 . . . . . . . . 1 . . . Naked Turns . | . . . . . . . . . . . . . . . . . . . . . . . . Heaviest Build 76 | 11 18 23 32 34 54 47 53 47 49 49 53 53 58 58 58 58 58 58 64 76 76 76 76 Greatest Support 84 | 45 33 33 35 35 51 49 58 58 58 58 65 56 62 56 61 61 61 61 64 84 84 84 84 Greatest Overweight (x) 1 | . . . . 1 1 . . . . . 1 . 1 1 1 . . . 1 1 . . . Average Overweight (x) . | . . . . . . . . . . . . . . . . . . . . . . . . Largest Inventory Capacity 7 | 2 2 2 4 5 5 5 5 6 6 6 6 6 6 6 6 6 6 7 7 7 7 7 7 Average Capacity 4 | 2 2 2 3 4 5 5 5 5 6 6 6 6 6 6 6 6 6 6 7 7 7 7 7 Most Carried 7 | 2 2 2 4 5 5 5 5 6 6 6 6 6 6 6 6 6 6 6 7 7 7 7 7 Average Carried 4 | 1 1 2 3 4 4 5 4 5 5 5 5 6 5 6 6 6 6 6 6 6 7 7 6 Final Capacity 7 | 2 2 2 4 5 5 5 5 6 6 6 6 6 6 6 6 6 6 7 7 7 7 7 7 Final Carried 7 | 2 2 2 4 5 5 5 5 6 6 6 6 6 6 6 6 6 6 6 7 7 7 7 6 Class Distribution -------------------- 42% | Scavenger-Mutant 27% | Scavenger-Ninja 15% | Scavenger-Assassin 10% | Scavenger-Tank Dominant Class ---------------- Scavenger-Mutant | -10/Materials Scavenger-Mutant | -10/Mines Scavenger-Tank | -9/Materials Scavenger-Tank | -9/Mines Scavenger-Mutant | -9/Exiles Scavenger-Mutant | -8/Mines Scavenger-Mutant | -8/Materials Scavenger-Mutant | -8/Garrison Scavenger-Mutant | -8/Materials Scavenger-Ninja | -8/Garrison Scavenger-Ninja | -7/Factory Scavenger-Ninja | -7/Garrison Scavenger-Assassin | -7/Factory Scavenger-Assassin | -7/Garrison Scavenger-Assassin | -6/Factory Scavenger-Ninja | -6/Garrison Scavenger-Ninja | -5/Factory Scavenger-Ninja | -5/Garrison Scavenger-Ninja | -5/Factory Scavenger-Assassin | -5/Extension Scavenger-Ninja | -5/Cetus Scavenger-Ninja | -5/Archives Scavenger-Ninja | -5/Hub_04(d) Resources | -11 -10 -10 -9 -9 -9 -8 -8 -8 -8 -8 -7 -7 -7 -7 -6 -6 -5 -5 -5 -5 -5 -5 -5 ----------- Run | Scr Mat Min Mat Min Exi Min Mat Gar Mat Gar Fac Gar Fac Gar Fac Gar Fac Gar Fac Ext Cet Arc Hub Matter Collected 3947 | 400 526 85 909 213 705 1 287 40 38 35 170 10 10 10 10 20 10 60 20 279 20 30 59 Remotely . | . . . . . . . . . . . . . . . . . . . . . . . . Salvage Created 16251 | 183 746 95 1919 192 356 366 1201 382 642 301 2268 721 707 1095 478 620 267 310 425 744 557 601 1075 Parts 942 | 7 63 7 151 12 75 14 75 19 39 13 120 37 37 54 16 25 13 21 14 45 26 23 36 Haulers Intercepted 21 | . 2 . 6 . . . 4 . 2 . 4 . . . . . . . 1 . . . 2 Recyclers Shooed 2 | . . . . . . . . . . . . . . . . . . . 1 1 . . . Parts Field Recycled . | . . . . . . . . . . . . . . . . . . . . . . . . Retrieved Matter . | . . . . . . . . . . . . . . . . . . . . . . . . Parts Self-Destructed . | . . . . . . . . . . . . . . . . . . . . . . . . Prevented . | . . . . . . . . . . . . . . . . . . . . . . . . Kills | -11 -10 -10 -9 -9 -9 -8 -8 -8 -8 -8 -7 -7 -7 -7 -6 -6 -5 -5 -5 -5 -5 -5 -5 ------- Run | Scr Mat Min Mat Min Exi Min Mat Gar Mat Gar Fac Gar Fac Gar Fac Gar Fac Gar Fac Ext Cet Arc Hub Combat Hostiles Destroyed 314 | 8 20 6 40 14 5 9 27 10 13 5 38 10 15 22 9 11 5 13 4 10 8 4 8 Melee 213 | . . . . . . 6 23 10 13 5 38 10 15 21 9 11 5 13 4 10 8 4 8 Guns 65 | 8 17 . 25 6 2 3 4 . . . . . . . . . . . . . . . . AOE 35 | . 3 6 15 8 3 . . . . . . . . . . . . . . . . . . Classes Destroyed 19 | 3 6 . 2 . 2 1 . . . . 2 . . 1 1 1 . . . . . . . Worker 18 | . 1 . 5 1 . . 1 . . . 4 . 2 . 3 . . . . . . . 1 Builder 3 | . . . 3 . . . . . . . . . . . . . . . . . . . . Tunneler 3 | 1 . . . . . . . . . . . . 1 . . . 1 . . . . . . Hauler 21 | . 2 . 6 . . . 4 . 2 . 4 . . . . . . . 1 . . . 2 Recycler 13 | 1 . 1 1 . . . . . . . 5 . 2 . . . . . 1 1 . . 1 Operator 9 | . 2 . 2 . . . . . 1 . . . . . . . . . . . . 2 2 Turret 1 | . . . . . 1 . . . . . . . . . . . . . . . . . . Watcher 20 | . 2 . 5 . . . 3 . . . 4 . 2 . . . . . . . 2 . 2 Swarmer 68 | . 3 6 14 3 . 5 7 1 . . 9 2 8 3 . 2 . 5 . . . . . Grunt 131 | . 17 . 16 3 . 3 10 7 9 4 12 3 5 13 8 7 5 3 3 2 . . 1 Brawler 1 | . . . . . . . . . . . . . . . 1 . . . . . . . . Duelist 5 | . . . . . . . . . . . 2 1 . 1 . . . . . . . . 1 Sentry 53 | . . . 10 . . . 7 2 4 1 6 3 1 3 . . . 2 1 5 . 4 4 Specialist 1 | . . . . . . . . . . . . . . 1 . . . . . . . . . Hunter 16 | . . . . . . 1 3 . . . 6 1 . . . 1 . 1 . 1 . . 2 Programmer 9 | . . . . . . . . . . . 3 . 1 1 . . . 2 . 2 . . . Behemoth 1 | . . . . . . . . . . . . . . . . 1 . . . . . . . Cetus Guard 8 | . . . . . . . . . . . . . . . . . . . . . 8 . . Zionite 7 | . . . . . 7 . . . . . . . . . . . . . . . . . . Assembled 22 | 8 . . . 8 6 . . . . . . . . . . . . . . . . . . Best Kill Streak 14 | 3 4 4 14 5 4 3 5 4 4 2 6 3 3 6 4 9 5 5 3 4 4 2 4 Combat Bots Only 9 | 3 3 3 9 5 4 3 4 4 3 2 5 3 3 6 4 9 4 5 3 4 4 2 2 Max Kills in Single Turn 4 | 1 2 2 3 4 2 2 2 1 1 1 1 1 1 2 1 1 1 1 1 1 1 1 1 Gunslinging . | . . . . . . . . . . . . . . . . . . . . . . . . Exploded 4 | . 2 2 3 4 1 . . . . . . . . . . . . . . . . . . Melee 2 | . . . . . . 2 1 1 1 1 1 1 1 2 1 1 1 1 1 1 1 1 1 Uniques/NPCs Destroyed 5 | . . . . . 4 . . . . . . . . . . . . . . 1 . . . 8R-AWN (-9/Exiles) EX-HEX (-9/Exiles) EX-DEC (-9/Exiles) EX-BIN (-9/Exiles) A7 (-5/Extension) Combat | -11 -10 -10 -9 -9 -9 -8 -8 -8 -8 -8 -7 -7 -7 -7 -6 -6 -5 -5 -5 -5 -5 -5 -5 -------- Run | Scr Mat Min Mat Min Exi Min Mat Gar Mat Gar Fac Gar Fac Gar Fac Gar Fac Gar Fac Ext Cet Arc Hub Damage Taken 14178 | 196 677 91 1003 447 1014 251 796 298 105 323 1411 361 593 761 460 984 110 1014 394 568 999 310 1012 Core 9439 | 151 557 49 639 268 640 114 531 205 78 209 968 241 391 461 318 613 69 601 288 404 710 243 691 Absorbed by Shields 3298 | . . . . . . . 226 113 41 123 508 145 223 295 165 257 40 272 138 205 353 110 84 Redirected to Core 7818 | 151 395 32 556 268 562 114 362 168 32 185 754 235 325 405 242 545 69 536 249 354 590 162 527 Core Remaining (%) 87 | 92 . 80 . . . 79 . . . 98 . . . 100 . 76 . . . . . . . Volleys Fired 455 | 30 91 5 100 27 149 6 19 . . . . . . . . . . . . 28 . . . Largest 3 | 2 3 1 3 3 3 1 1 . . . . . . . . . . . . 1 . . . Hottest 101 | 40 80 33 91 101 101 55 55 . . . . . . . . . . . . 20 . . . Shots Fired 853 | 60 180 5 262 59 234 6 19 . . . . . . . . . . . . 28 . . . Gun 793 | 60 176 . 253 55 224 6 19 . . . . . . . . . . . . . . . . Cannon . | . . . . . . . . . . . . . . . . . . . . . . . . Launcher 27 | . 4 5 9 4 5 . . . . . . . . . . . . . . . . . . Special 33 | . . . . . 5 . . . . . . . . . . . . . . 28 . . . Kinetic 565 | 60 172 . 182 33 104 . 14 . . . . . . . . . . . . . . . . Thermal 28 | . . . . . . . . . . . . . . . . . . . . 28 . . . Explosive 27 | . 4 5 9 4 5 . . . . . . . . . . . . . . . . . . Electromagnetic 228 | . 4 . 71 22 120 6 5 . . . . . . . . . . . . . . . . Robot Hit Streak 50 | 5 11 4 11 10 50 5 6 . . . . . . . . . . . . 2 . . . Robot Miss Streak 7 | 3 3 . 4 4 4 1 2 . . . . . . . . . . . . 7 . . . Penetration Max 1 | . . . . . . . 1 . . . . . . . . . . . . . . . . Secondary Targets 4 | . 1 . 2 . 1 . . . . . . . . . . . . . . . . . . Max Gunslinging Chain 1 | . 1 . 1 . 1 . . . . . . . . . . . . . . . . . . Shots Hit Robots 1393 | 35 124 3 175 39 182 21 88 27 46 17 137 40 54 54 40 41 16 50 16 60 56 21 51 Core Hits 671 | 19 55 8 89 23 68 10 41 13 19 6 71 18 24 29 19 22 8 19 10 35 25 12 28 Critical Hits 56 | . . . 3 . 8 1 7 3 1 . 8 1 4 4 4 4 . 2 . 2 1 . 3 Critical Kills 15 | . . . 2 . . . 2 1 1 . 2 . 1 2 1 1 . 1 . 1 . . . Critical Parts Destroyed 34 | . . . 1 . 6 1 3 2 . . 5 1 3 1 2 3 . 1 . 1 1 . 3 Melee Attacks 1058 | . . . . . . 17 105 45 54 30 175 58 83 89 46 46 18 67 21 58 58 25 63 Impact 84 | . . . . . . . . . 5 1 1 9 24 18 8 3 4 9 2 . . . . Slashing 881 | . . . . . . 14 85 37 37 25 149 49 59 71 38 43 14 57 19 38 58 25 63 Piercing 90 | . . . . . . 3 20 8 12 4 25 . . . . . . . . 18 . . . Sneak Attacks 62 | . . . . . . . 6 . 8 . 15 1 5 . 3 . 1 1 2 10 . 3 7 Combat Hostiles 8 | . . . . . . . . . 3 . 1 1 . . . . . 1 . 2 . . . Follow-up Attacks 195 | . . . . . . 2 14 9 18 6 24 5 11 12 9 7 5 8 2 15 25 7 16 Damage Inflicted 51848 | 375 1527 406 3549 1025 2166 1120 4464 1267 2371 767 7529 2802 2575 2586 1904 1875 845 2383 920 2709 2467 1302 2914 Guns 6498 | 375 1202 . 2477 468 1600 56 320 . . . . . . . . . . . . . . . . Cannons . | . . . . . . . . . . . . . . . . . . . . . . . . Explosions 2920 | . 319 406 1072 557 566 . . . . . . . . . . . . . . . . . . Melee 42262 | . . . . . . 1064 4144 1267 2371 767 7529 2802 2575 2586 1904 1875 845 2383 920 2547 2467 1302 2914 Ramming 6 | . 6 . . . . . . . . . . . . . . . . . . . . . . Kinetic 4812 | 375 1173 . 1500 288 1207 . 269 . . . . . . . . . . . . . . . . Thermal 443 | . 35 . 173 . 73 . . . . . . . . . . . . . . 162 . . . Explosive 2639 | . 284 406 899 557 493 . . . . . . . . . . . . . . . . . . Electromagnetic 1686 | . 29 . 977 180 393 56 51 . . . . . . . . . . . . . . . . Impact 1383 | . . . . . . . . . 170 . . 135 492 206 142 75 84 57 22 . . . . Slashing 39027 | . . . . . . 1018 3930 1207 1791 670 7154 2667 2083 2380 1762 1800 761 2326 898 1897 2467 1302 2914 Piercing 1852 | . . . . . . 46 214 60 410 97 375 . . . . . . . . 650 . . . Highest Corruption 8 | . 1 1 . . 1 1 3 3 3 3 1 1 . 1 1 1 . 2 8 4 1 1 7 Average Corruption 1 | . 1 1 . . 1 1 3 3 3 3 1 1 . 1 1 1 . 1 3 1 1 1 3 Corruption Purged 14 | . . . . . . . . . . . . 1 . 1 . 1 . . 7 3 . 1 . Effects 87 | . 7 1 . . 2 2 8 8 7 4 . . . 1 . 4 . 3 21 11 2 1 5 Message Errors 26 | . 3 1 . . . 1 2 2 2 . . . . 1 . 2 . . 7 4 1 . . Matter Fused 11 | . . . . . . . 3 3 1 2 . . . . . . . . 1 . . . 1 Heat Flow Errors 13 | . . . . . . . 1 . 1 2 . . . . . . . 2 3 1 . . 3 Energy Discharges 15 | . 2 . . . . . 1 1 1 . . . . . . 1 . 1 4 3 . 1 . Data Loss (minor) 14 | . . . . . 2 1 1 . 2 . . . . . . . . . 5 2 1 . . Targeting Errors 8 | . 2 . . . . . . 2 . . . . . . . 1 . . 1 1 . . 1 Overload Shots . | . . . . . . . . . . . . . . . . . . . . . . . . Overflow Damage 4634 | . 14 23 34 22 50 434 265 61 426 64 960 230 180 233 251 35 118 193 113 222 28 346 332 Projectiles . | . . . . . . . . . . . . . . . . . . . . . . . . Explosions 143 | . 14 23 34 22 50 . . . . . . . . . . . . . . . . . . Melee 4491 | . . . . . . 434 265 61 426 64 960 230 180 233 251 35 118 193 113 222 28 346 332 Knockbacks 2 | . . . . . . . . . . . . . 2 . . . . . . . . . . Impact 2 | . . . . . . . . . . . . . 2 . . . . . . . . . . Kinetic . | . . . . . . . . . . . . . . . . . . . . . . . . Secondary . | . . . . . . . . . . . . . . . . . . . . . . . . Self-Inflicted Damage 370 | . 14 53 118 . 30 . . . . . . . . . . 155 . . . . . . . Shots 9 | . 1 1 5 . 1 . . . . . . . . . . 1 . . . . . . . Rammed 1 | . 1 . . . . . . . . . . . . . . . . . . . . . . Targets Rammed 1 | . 1 . . . . . . . . . . . . . . . . . . . . . . Kicked . | . . . . . . . . . . . . . . . . . . . . . . . . Crushed . | . . . . . . . . . . . . . . . . . . . . . . . . Highest Temperature 269 | 30 26 . 7 8 18 1 125 . 108 200 . . . . . . . 153 269 143 7 7 238 Average Temperature 51 | 13 6 . 4 3 9 1 33 . 55 92 . . . . . . . 81 118 82 3 3 125 Received Heat Transfer 3171 | 120 336 . 342 117 . 90 228 126 54 168 194 90 118 274 180 230 48 75 45 48 180 42 66 Siege Activations . | . . . . . . . . . . . . . . . . . . . . . . . . Robots Corrupted . | . . . . . . . . . . . . . . . . . . . . . . . . Combat Hostiles . | . . . . . . . . . . . . . . . . . . . . . . . . Parts Fried 14 | . . . 3 . 3 . 1 . . . . . 5 1 . . . . . 1 . . . Impact Corruptions 7 | . . . . . . . . . . . . . 4 1 . 1 . 1 . . . . . Robots Melted . | . . . . . . . . . . . . . . . . . . . . . . . . Combat Hostiles . | . . . . . . . . . . . . . . . . . . . . . . . . Parts Melted 1 | . . . 1 . . . . . . . . . . . . . . . . . . . . Heat Transferred 646 | . 50 . 300 . 12 . . . . . . . . . . . . . . 284 . . . Parts Sabotaged . | . . . . . . . . . . . . . . . . . . . . . . . . Parts Stolen . | . . . . . . . . . . . . . . . . . . . . . . . . Parts Stripped . | . . . . . . . . . . . . . . . . . . . . . . . . Power Chain Reactions 11 | . 1 . 4 . 2 . . . . . . . . . . . . . 4 . . . . Missiles Intercepted . | . . . . . . . . . . . . . . . . . . . . . . . . Alert | -11 -10 -10 -9 -9 -9 -8 -8 -8 -8 -8 -7 -7 -7 -7 -6 -6 -5 -5 -5 -5 -5 -5 -5 ------- Run | Scr Mat Min Mat Min Exi Min Mat Gar Mat Gar Fac Gar Fac Gar Fac Gar Fac Gar Fac Ext Cet Arc Hub Peak Influence 999 | 10 286 209 999 311 . 249 479 504 593 400 855 929 582 540 445 442 314 469 604 337 120 135 256 Initial 587 | . . 49 3 186 . . 40 174 245 204 210 587 487 74 283 245 231 219 245 154 . 48 . Average 237 | . 124 122 550 205 . 137 178 346 366 321 350 839 327 335 338 359 283 348 425 111 65 61 119 Maximum Alert Level 3 | . 1 1 3 1 . 1 2 2 2 2 3 3 2 2 2 2 1 2 2 1 . . 1 Low Security (%) 51 | 100 84 62 13 51 . 79 63 8 . . 24 . 36 18 . . . . . 76 100 100 86 Level 1 26 | . 15 37 22 48 . 20 26 65 63 78 42 . 18 41 86 52 100 69 32 23 . . 13 Level 2 16 | . . . 29 . . . 9 25 36 21 21 14 44 40 13 47 . 30 67 . . . . Level 3 5 | . . . 34 . . . . . . . 12 85 . . . . . . . . . . . Level 4 . | . . . . . . . . . . . . . . . . . . . . . . . . Level 5 . | . . . . . . . . . . . . . . . . . . . . . . . . High Security . | . . . . . . . . . . . . . . . . . . . . . . . . Max Security . | . . . . . . . . . . . . . . . . . . . . . . . . Squads Dispatched 61 | . 4 . 7 1 . . 5 . 2 . 16 . 10 . 3 . 1 . 6 1 . . 5 Investigation 41 | . 3 . 5 1 . . 4 . 1 . 10 . 5 . 3 . 1 . 3 1 . . 4 Extermination 5 | . . . . . . . . . . . 3 . 1 . . . . . 1 . . . . Reinforcement 10 | . 1 . 2 . . . 1 . 1 . 2 . 1 . . . . . 1 . . . 1 Assault 1 | . . . . . . . . . . . . . . . . . . . 1 . . . . Garrison 4 | . . . . . . . . . . . 1 . 3 . . . . . . . . . . Intercept . | . . . . . . . . . . . . . . . . . . . . . . . . Construction Impeded . | . . . . . . . . . . . . . . . . . . . . . . . . Haulers Reinforced 1 | . . . . . . . . . . . 1 . . . . . . . . . . . . Stealth | -11 -10 -10 -9 -9 -9 -8 -8 -8 -8 -8 -7 -7 -7 -7 -6 -6 -5 -5 -5 -5 -5 -5 -5 --------- Run | Scr Mat Min Mat Min Exi Min Mat Gar Mat Gar Fac Gar Fac Gar Fac Gar Fac Gar Fac Ext Cet Arc Hub Distress Signals 13 | . 3 . 5 . . . 1 . . . 1 . . . . . . . . 1 2 . . Communications Jammed 706 | . . . . . . . 72 . 19 . 55 . 6 . 12 . . . 19 491 9 . 23 Distress Signals 701 | . . . . . . . 68 . 19 . 54 . 6 . 12 . . . 19 491 9 . 23 Times Spotted 489 | 8 31 4 55 18 13 12 39 15 24 6 51 18 32 34 15 21 5 15 11 20 11 7 24 Peak Tracking Total 11 | 2 5 3 5 6 8 2 5 3 3 3 7 3 5 9 4 11 4 6 4 6 5 2 6 Tactical Retreats 55 | . . . 1 3 3 2 2 4 2 2 1 6 8 11 3 2 . 1 2 . . . 2 Traps | -11 -10 -10 -9 -9 -9 -8 -8 -8 -8 -8 -7 -7 -7 -7 -6 -6 -5 -5 -5 -5 -5 -5 -5 ------- Run | Scr Mat Min Mat Min Exi Min Mat Gar Mat Gar Fac Gar Fac Gar Fac Gar Fac Gar Fac Ext Cet Arc Hub Traps Triggered 26 | . . . . . . . . . . 2 4 4 2 4 1 1 . 3 1 2 . . 2 Indirectly . | . . . . . . . . . . . . . . . . . . . . . . . . Trap Hack Attempts . | . . . . . . . . . . . . . . . . . . . . . . . . Triggered . | . . . . . . . . . . . . . . . . . . . . . . . . Disarmed . | . . . . . . . . . . . . . . . . . . . . . . . . Reprogrammed . | . . . . . . . . . . . . . . . . . . . . . . . . Reused . | . . . . . . . . . . . . . . . . . . . . . . . . Traps Extracted . | . . . . . . . . . . . . . . . . . . . . . . . . Installed . | . . . . . . . . . . . . . . . . . . . . . . . . Triggered . | . . . . . . . . . . . . . . . . . . . . . . . . Machines | -11 -10 -10 -9 -9 -9 -8 -8 -8 -8 -8 -7 -7 -7 -7 -6 -6 -5 -5 -5 -5 -5 -5 -5 ---------- Run | Scr Mat Min Mat Min Exi Min Mat Gar Mat Gar Fac Gar Fac Gar Fac Gar Fac Gar Fac Ext Cet Arc Hub Machines Disabled 31 | . 3 . 3 2 9 . 1 1 . 1 . 3 . 4 . 2 . 2 . . . . . Max in Single Turn 2 | . 2 . 1 1 2 . 1 1 . 1 . 1 . 1 . 2 . 1 . . . . . Garrison Access 1 | . . . . . . . . . . . . . . . . . . . . . . . 1 Garrison Relay 10 | . . . . . . . . 1 . 1 . 2 . 4 . . . 2 . . . . . Phase Generator 1 | . . . . . . . . . . . . . . . . 1 . . . . . . . Network Hub 3 | . . . . . . . . . . . . . . . . . . . . . . . 3 Machines Sabotaged 2 | . . . . . . . . . . . . . . . . . . . . . . . 2 Garrisons Compromised 1 | . . . . . . . . . . . . . 1 . . . . . . . . . . Overloaded Fab Kills 6 | . . . . . . . . . . . . . . . . . . . 6 . . . . Fab Network Shutdowns 2 | . . . . . . . . . . . 1 . . . . . . . 1 . . . . Hacking | -11 -10 -10 -9 -9 -9 -8 -8 -8 -8 -8 -7 -7 -7 -7 -6 -6 -5 -5 -5 -5 -5 -5 -5 --------- Run | Scr Mat Min Mat Min Exi Min Mat Gar Mat Gar Fac Gar Fac Gar Fac Gar Fac Gar Fac Ext Cet Arc Hub Machines Accessed 121 | . 10 . 15 1 2 . 13 . 9 . 29 . 7 . 6 . 3 . 6 8 2 . 10 Terminals 77 | . 7 . 10 . . . 9 . 6 . 15 . 3 . 4 . 1 . 4 8 2 . 8 Fabricators 6 | . . . . . . . . . . . 2 . 1 . . . 1 . 2 . . . . Repair Stations 5 | . 1 . 1 . . . 1 . . . 2 . . . . . . . . . . . . Recycling Units 12 | . 2 . 2 . . . 1 . . . 5 . 2 . . . . . . . . . . Scanalyzers 7 | . . . 2 . . . 1 . 2 . 2 . . . . . . . . . . . . Garrison Access 11 | . . . . . . . 1 . 1 . 3 . 1 . 2 . 1 . . . . . 2 Total Hacks 510 | . 50 . 74 1 2 . 60 . 37 . 111 . 34 . 24 . 10 . 25 43 5 . 34 Successful 336 | . 36 . 60 1 2 . 42 . 26 . 68 . 22 . 13 . 4 . 13 22 3 . 24 Failed 171 | . 13 . 13 . . . 17 . 11 . 43 . 12 . 11 . 6 . 12 21 2 . 10 Catastrophic 22 | . . . 2 . . . . . . . 8 . 4 . 1 . . . 1 3 1 . 2 Database Lockouts 3 | . 1 . 1 . . . 1 . . . . . . . . . . . . . . . . Manual 268 | . 34 . 37 . 1 . 29 . 21 . 51 . 20 . 13 . 1 . 9 29 2 . 21 Terminals 372 | . 43 . 53 . . . 48 . 22 . 64 . 22 . 17 . 6 . 19 43 5 . 30 Fabricators 19 | . . . . . . . . . . . 7 . 3 . . . 3 . 6 . . . . Repair Stations 14 | . 2 . 6 . . . 2 . . . 4 . . . . . . . . . . . . Recycling Units 30 | . 5 . 5 . . . 3 . . . 12 . 5 . . . . . . . . . . Scanalyzers 33 | . . . 10 . . . 4 . 12 . 7 . . . . . . . . . . . . Garrison Access 39 | . . . . . . . 3 . 3 . 17 . 4 . 7 . 1 . . . . . 4 Terminal Hacks 143 | . 18 . 26 1 2 . 17 . 8 . 23 . 9 . 6 . 2 . 7 12 1 . 11 Record 1 | . . . . . 1 . . . . . . . . . . . . . . . . . . Part Schematic 18 | . . . . . . . . . . . 7 . . . 1 . . . 3 5 . . 2 Robot Schematic 5 | . 2 . . . . . . . . . 2 . 1 . . . . . . . . . . Robot Analysis 14 | . 4 . 3 . . . 1 . 1 . 1 . . . . . 1 . 1 1 . . 1 Prototype ID Bank 21 | . 2 . 6 . . . 3 . 1 . 5 . . . 2 . . . . . . . 2 Open Door 6 | . . . . 1 . . . . . . . . . . . . . . 1 3 1 . . Level Access Points 1 | . . . 1 . . . . . . . . . . . . . . . . . . . . Branch Access Points 5 | . 1 . 1 . . . . . 1 . . . 1 . . . . . 1 . . . . Terminal Index 7 | . 2 . 1 . . . . . . . 1 . 1 . 1 . . . . . . . 1 Fabricator Index 2 | . . . . . . . . . . . 1 . . . 1 . . . . . . . . Recycling Unit Index 1 | . 1 . . . . . . . . . . . . . . . . . . . . . . Scanalyzer Index 3 | . . . 1 . . . . . 1 . . . 1 . . . . . . . . . . Garrison Index 2 | . . . . . . . . . . . . . . . 1 . . . . . . . 1 Alert Level 1 | . . . 1 . . . . . . . . . . . . . . . . . . . . Unreport Threat 19 | . 1 . 4 . . . 5 . 2 . 3 . 2 . . . . . . 2 . . . Locate Traps 18 | . 2 . 5 . . . 4 . 2 . 1 . 1 . . . 1 . . . . . 2 Hauler Manifests 8 | . 1 . 1 . . . 2 . . . 1 . 2 . . . . . . 1 . . . Registered Components 2 | . 1 . 1 . . . . . . . . . . . . . . . . . . . . Zone Layout 8 | . 1 . 1 . . . 2 . . . 1 . . . . . . . 1 . . . 2 EX-Prototype ID Bank 1 | . . . . . 1 . . . . . . . . . . . . . . . . . . Fabricator Hacks 6 | . . . . . . . . . . . 4 . . . . . 1 . 1 . . . . Load Schematic 3 | . . . . . . . . . . . 2 . . . . . 1 . . . . . . Build 3 | . . . . . . . . . . . 2 . . . . . . . 1 . . . . Repair Station Hacks 12 | . 2 . 6 . . . 2 . . . 2 . . . . . . . . . . . . Scan Component 6 | . 1 . 3 . . . 1 . . . 1 . . . . . . . . . . . . Repair 6 | . 1 . 3 . . . 1 . . . 1 . . . . . . . . . . . . Recycling Unit Hacks 16 | . 3 . 3 . . . 2 . . . 6 . 2 . . . . . . . . . . Report Inventory 12 | . 2 . 2 . . . 1 . . . 5 . 2 . . . . . . . . . . Retrieve Components 4 | . 1 . 1 . . . 1 . . . 1 . . . . . . . . . . . . Scanalyzer 28 | . . . 9 . . . 4 . 11 . 4 . . . . . . . . . . . . Insert Component 12 | . . . 4 . . . 2 . 4 . 2 . . . . . . . . . . . . Analyze 16 | . . . 5 . . . 2 . 7 . 2 . . . . . . . . . . . . Garrison Access Hacks 11 | . . . . . . . 1 . 1 . 3 . 1 . 2 . 1 . . . . . 2 Unlock Access 10 | . . . . . . . 1 . 1 . 3 . 1 . 2 . 1 . . . . . 1 Seal Access 1 | . . . . . . . . . . . . . . . . . . . . . . . 1 Unauthorized Hacks 120 | . 13 . 16 . . . 16 . 6 . 26 . 10 . 5 . . . 5 10 2 . 11 Terminals 83 | . 12 . 13 . . . 14 . 5 . 8 . 6 . 2 . . . 2 10 2 . 9 Track 38 | . 5 . 6 . . . 7 . 3 . 4 . 2 . 1 . . . 1 4 2 . 3 Assimilate 5 | . 2 . . . . . . . 1 . . . . . . . . . 1 . . . 1 Botnet 26 | . 3 . 6 . . . 5 . . . 3 . 2 . . . . . . 5 . . 2 Disrupt 2 | . 1 . . . . . 1 . . . . . . . . . . . . . . . . Operators 9 | . 1 . 1 . . . 1 . 1 . 1 . 2 . 1 . . . . 1 . . . Sabotage 3 | . . . . . . . . . . . . . . . . . . . . . . . 3 Fabricators 5 | . . . . . . . . . . . 2 . . . . . . . 3 . . . . Report 3 | . . . . . . . . . . . 2 . . . . . . . 1 . . . . Overload 1 | . . . . . . . . . . . . . . . . . . . 1 . . . . Download 1 | . . . . . . . . . . . . . . . . . . . 1 . . . . Repair Stations 1 | . . . . . . . . . . . 1 . . . . . . . . . . . . Mechanics 1 | . . . . . . . . . . . 1 . . . . . . . . . . . . Recycling Units 11 | . 1 . 2 . . . 1 . . . 5 . 2 . . . . . . . . . . Tunnel 11 | . 1 . 2 . . . 1 . . . 5 . 2 . . . . . . . . . . Scanalyzers 1 | . . . 1 . . . . . . . . . . . . . . . . . . . . Extract 1 | . . . 1 . . . . . . . . . . . . . . . . . . . . Garrison Access 19 | . . . . . . . 1 . 1 . 10 . 2 . 3 . . . . . . . 2 Broadcast 5 | . . . . . . . . . . . 3 . . . 1 . . . . . . . 1 Restock 1 | . . . . . . . . . . . 1 . . . . . . . . . . . . Reprogram 9 | . . . . . . . 1 . 1 . 3 . 1 . 2 . . . . . . . 1 Intercept 1 | . . . . . . . . . . . 1 . . . . . . . . . . . . Watchers 3 | . . . . . . . . . . . 2 . 1 . . . . . . . . . . Data Cores Recovered . | . . . . . . . . . . . . . . . . . . . . . . . . Used . | . . . . . . . . . . . . . . . . . . . . . . . . Hacking Detections 96 | . 8 . 11 . . . 11 . 7 . 24 . 7 . 6 . 2 . 5 7 1 . 7 Full Trace Events 26 | . 2 . 3 . . . 4 . 2 . 5 . 3 . 3 . 1 . 1 1 . . 1 Feedback Events 2 | . 1 . . . . . . . . . 1 . . . . . . . . . . . . Corruption 2 | . 1 . . . . . . . . . 1 . . . . . . . . . . . . Feedback Blocked . | . . . . . . . . . . . . . . . . . . . . . . . . Robot Schematics Acquired 5 | . 2 . . . . . . . . . 2 . 1 . . . . . . . . . . Robots Built . | . . . . . . . . . . . . . . . . . . . . . . . . Matter . | . . . . . . . . . . . . . . . . . . . . . . . . Time . | . . . . . . . . . . . . . . . . . . . . . . . . Total Robot Build Rating . | . . . . . . . . . . . . . . . . . . . . . . . . Part Schematics Acquired 29 | . . . 5 . . . 1 . 3 . 8 . . . 1 . . . 4 5 . . 2 Parts Built 5 | . . . . . . . . . . . 3 . . . . . . . 2 . . . . Matter 687 | . . . . . . . . . . . 453 . . . . . . . 234 . . . . Time 297 | . . . . . . . . . . . 180 . . . . . . . 117 . . . . Total Part Build Rating 27 | . . . . . . . . . . . 13 . . . . . . . 14 . . . . Parts Repaired 6 | . 1 . 3 . . . 1 . . . 1 . . . . . . . . . . . . Time 198 | . 32 . 78 . . . 44 . . . 44 . . . . . . . . . . . . Parts Recycled . | . . . . . . . . . . . . . . . . . . . . . . . . Recycled Matter . | . . . . . . . . . . . . . . . . . . . . . . . . Retrieved Matter . | . . . . . . . . . . . . . . . . . . . . . . . . Retrieved Components 31 | . 9 . 10 . . . 6 . . . 6 . . . . . . . . . . . . Parts Scanalyzed 10 | . . . 4 . . . 2 . 2 . 2 . . . . . . . . . . . . Part Schematics Acquired 9 | . . . 4 . . . 1 . 3 . 1 . . . . . . . . . . . . Parts Damaged 1 | . . . . . . . . . 1 . . . . . . . . . . . . . . Bothacking | -11 -10 -10 -9 -9 -9 -8 -8 -8 -8 -8 -7 -7 -7 -7 -6 -6 -5 -5 -5 -5 -5 -5 -5 ------------ Run | Scr Mat Min Mat Min Exi Min Mat Gar Mat Gar Fac Gar Fac Gar Fac Gar Fac Gar Fac Ext Cet Arc Hub Used RIF Installer 6 | . . . . . . . . 1 . 1 . 1 . 1 . 1 . 1 . . . . . Command Fork 1 | . . . . . . . . . . . . . . . . 1 . . . . . . . Threat Obfuscator 2 | . . . . . . . . . . 1 . 1 . . . . . . . . . . . Watcher Feeds 1 | . . . . . . . . . . . . . . . . . . 1 . . . . . Program Shield 1 | . . . . . . . . . . . . . . 1 . . . . . . . . . Robots Hacked 6 | . . . . . 4 . . . . . . . . . . . . 1 . 1 . . . Non-combat 3 | . . . . . 3 . . . . . . . . . . . . . . . . . . Combat 3 | . . . . . 1 . . . . . . . . . . . . 1 . 1 . . . Robot Hacks Applied 6 | . . . . . 4 . . . . . . . . . . . . 1 . 1 . . . parse_system 5 | . . . . . 4 . . . . . . . . . . . . . . 1 . . . formatsys_high 1 | . . . . . . . . . . . . . . . . . . 1 . . . . . Relay Couplers Released 17 | . . . . . . . . 2 . 2 1 3 . 6 . . . 3 . . . . . Machine Destruction 16 | . . . . . . . . 2 . 2 . 3 . 6 . . . 3 . . . . . Programmers 1 | . . . . . . . . . . . 1 . . . . . . . . . . . . Attached 1 | . . . . . . . . . . . . . . . . . . 1 . . . . . Robots Rewired 9 | . . . . . 1 . . . . . . . . . . . . . . 8 . . . Allies Hacked . | . . . . . . . . . . . . . . . . . . . . . . . . Hacks Repelled . | . . . . . . . . . . . . . . . . . . . . . . . . Allies | -11 -10 -10 -9 -9 -9 -8 -8 -8 -8 -8 -7 -7 -7 -7 -6 -6 -5 -5 -5 -5 -5 -5 -5 -------- Run | Scr Mat Min Mat Min Exi Min Mat Gar Mat Gar Fac Gar Fac Gar Fac Gar Fac Gar Fac Ext Cet Arc Hub Total Allies 40 | . 1 . . 5 1 . 3 . 1 . 4 . 5 . 4 . . 1 . 11 . . 4 Largest Group 10 | . 1 1 1 4 4 3 3 . 1 . 3 . 3 . 3 3 . 1 . 10 . . 4 Highest-Rated Group 397 | . 10 10 10 51 55 40 48 . 10 . 48 . 93 . 87 87 . 81 . 397 . . 116 Highest-Rated Ally 156 | . 10 10 10 31 16 16 16 . 10 . 21 . 31 . 29 29 . 81 . 156 . . 29 Total Orders 6 | . . . . . 6 . . . . . . . . . . . . . . . . . . STAY 3 | . . . . . 3 . . . . . . . . . . . . . . . . . . FOLLOW 3 | . . . . . 3 . . . . . . . . . . . . . . . . . . Ally Attacks 221 | . . . . 7 . 12 16 . . . 27 . 36 . . 22 . . . 101 . . . Total Damage 3710 | . . . . 78 . 128 202 . . . 404 . 444 . . 356 . . . 2098 . . . Kills 26 | . . . . 2 . 3 1 . . . 2 . 4 . . 2 . . . 12 . . . Allies Corrupted . | . . . . . . . . . . . . . . . . . . . . . . . . Allies Melted . | . . . . . . . . . . . . . . . . . . . . . . . . Intel | -11 -10 -10 -9 -9 -9 -8 -8 -8 -8 -8 -7 -7 -7 -7 -6 -6 -5 -5 -5 -5 -5 -5 -5 ------- Run | Scr Mat Min Mat Min Exi Min Mat Gar Mat Gar Fac Gar Fac Gar Fac Gar Fac Gar Fac Ext Cet Arc Hub Robot Analysis Total 14 | . 4 . 3 . . . 1 . 1 . 1 . . . . . 1 . 1 1 . . 1 Derelict Logs Recovered 4 | . . 2 . 2 . . . . . . . . . . . . . . . . . . . Drone Launches . | . . . . . . . . . . . . . . . . . . . . . . . . Drone Recoveries . | . . . . . . . . . . . . . . . . . . . . . . . . Exploration | -11 -10 -10 -9 -9 -9 -8 -8 -8 -8 -8 -7 -7 -7 -7 -6 -6 -5 -5 -5 -5 -5 -5 -5 ------------- Run | Scr Mat Min Mat Min Exi Min Mat Gar Mat Gar Fac Gar Fac Gar Fac Gar Fac Gar Fac Ext Cet Arc Hub Turns Passed 24189 | 4279 1380 457 1491 823 2422 580 1125 325 509 242 2641 507 1503 1042 608 300 87 403 893 937 231 824 580 Spaces Moved 16113 | 487 921 632 1393 437 1315 646 985 311 481 245 2696 437 1101 745 497 191 57 270 700 558 199 96 713 Core 4 | 4 . . . . . . . . . . . . . . . . . . . . . . . Treads 1046 | 483 . . . . 563 . . . . . . . . . . . . . . . . . . Legs . | . . . . . . . . . . . . . . . . . . . . . . . . Wheels . | . . . . . . . . . . . . . . . . . . . . . . . . Hover 15063 | . 921 632 1393 437 752 646 985 311 481 245 2696 437 1101 745 497 191 57 270 700 558 199 96 713 Flight . | . . . . . . . . . . . . . . . . . . . . . . . . Fastest Speed 38 | 50 66 66 66 66 76 76 65 65 65 65 55 55 48 55 55 55 55 55 38 52 52 52 52 Average Speed 84 | 159 70 66 66 159 147 76 66 65 65 65 62 55 113 112 97 55 55 55 71 96 52 52 52 Slowest Speed 180 | 160 100 66 66 170 180 76 76 65 65 65 111 55 118 118 118 55 55 55 121 126 52 52 52 Overloaded Moves 4 | . . . . . . . . . . . . . 4 . . . . . . . . . . Propulsion Burnouts . | . . . . . . . . . . . . . . . . . . . . . . . . Robots Hopped . | . . . . . . . . . . . . . . . . . . . . . . . . Cave-ins Triggered . | . . . . . . . . . . . . . . . . . . . . . . . . Exploration Rate (%) 62 | 66 98 98 98 96 86 97 66 52 48 36 69 60 31 88 16 35 2 44 19 73 75 76 73 Regions Visited 23 Branch Regions 8 Pre-discovered Areas 13 | . 1 1 2 . 1 . 1 . . . 5 . 2 . . . . . . . . . . Known Exits Taken 13 | . 1 . 1 . . 1 1 . 1 . 1 . 1 . 1 . 1 . 1 1 1 1 . Unknown Exits Taken 4 | 1 . 1 . 1 1 . . . . . . . . . . . . . . . . . . Scrap Searched 4 | . . 2 . 1 . 1 . . . . . . . . . . . . . . . . . Spaces Dug 51 | . . 21 6 . . . . . . 1 12 . 3 1 2 . . . 4 . . . 1 Terrain Destroyed 247 | . 15 41 91 31 27 . 12 . . 1 12 . 3 1 2 6 . . 4 . . . 1 Melee 24 | . . . . . . . . . . 1 12 . 3 1 2 . . . 4 . . . 1 Projectile 12 | . . . . . . . 12 . . . . . . . . . . . . . . . . AOE 211 | . 15 41 91 31 27 . . . . . . . . . . 6 . . . . . . . Terrain Rammed . | . . . . . . . . . . . . . . . . . . . . . . . . Walls Destroyed . | . . . . . . . . . . . . . . . . . . . . . . . . Machines Disabled . | . . . . . . . . . . . . . . . . . . . . . . . . Actions | -11 -10 -10 -9 -9 -9 -8 -8 -8 -8 -8 -7 -7 -7 -7 -6 -6 -5 -5 -5 -5 -5 -5 -5 --------- Run | Scr Mat Min Mat Min Exi Min Mat Gar Mat Gar Fac Gar Fac Gar Fac Gar Fac Gar Fac Ext Cet Arc Hub Total 25381 | 3934 1491 667 1757 512 1655 717 1361 402 644 306 3536 658 1315 907 599 352 95 486 1081 864 301 858 883 Wait 6971 | 3399 428 25 168 14 108 38 184 43 107 2 612 108 129 32 48 91 21 81 322 106 44 743 118 Move 16086 | 486 920 631 1392 436 1314 645 984 309 480 244 2695 436 1100 743 496 189 56 268 699 557 198 95 713 Hop . | . . . . . . . . . . . . . . . . . . . . . . . . Pick Up 64 | 3 3 1 8 4 15 . 6 2 6 1 6 . 1 . 1 . . . 1 5 . . 1 Fast Attach 81 | 8 3 1 7 . 10 . 13 1 . 1 10 . . . . . . 1 8 13 2 2 1 Attach 13 | . 1 . 3 1 . . 3 . 1 . 2 . 1 . . . . . . 1 . . . Detach 7 | . . . 2 . . . 1 . 1 . 3 . . . . . . . . . . . . Swap 74 | . 5 2 17 6 10 . 3 . 2 1 5 1 . 2 . 3 1 4 2 5 . 2 3 Drop 128 | 2 4 2 15 5 28 . 14 2 6 4 14 . . . 1 . . . 9 17 2 2 1 Fire 455 | 30 91 5 100 27 149 6 19 . . . . . . . . . . . . 28 . . . Melee 728 | . . . . . . 14 78 29 31 20 127 47 56 57 33 36 11 49 18 39 31 14 38 Ram 1 | . 1 . . . . . . . . . . . . . . . . . . . . . . Kick . | . . . . . . . . . . . . . . . . . . . . . . . . Crush . | . . . . . . . . . . . . . . . . . . . . . . . . Escape Stasis 163 | . . . . . . . . . . 20 . 39 . 39 . 13 . 39 . 13 . . . Rewire 39 | . . . . 1 9 . . . . . . . . . . . . . . 29 . . . Trap . | . . . . . . . . . . . . . . . . . . . . . . . . Miscellaneous 571 | 6 35 . 45 18 12 14 56 16 10 13 62 27 28 34 20 20 6 44 22 51 24 . 8 Route ------- -11/Scrapyard -10/Materials (discovered 4 exits: *Mat x3 / *Min) -10/Mines (discovered 2 exits: *Mat x2) -9/Materials (discovered 5 exits: *Mat x3 / *Min x2) -9/Mines (discovered 3 exits: *Mat x2 / *Exi) -9/Exiles (discovered 2 exits: [*Min x2]) -8/Mines (discovered 2 exits: *Mat x2) -8/Materials (discovered 3 exits: *Fac x2 / Gar) -8/Garrison (discovered 2 exits: *Mat x2) -8/Materials (discovered 2 exits: *Fac / Gar) -8/Garrison -7/Factory (discovered 10 exits: *Fac x4 / *Sto / *Low x2 / Gar / Gar / Gar) -7/Garrison (discovered 2 exits: *Fac x2) -7/Factory (discovered 6 exits: *Fac x2 / Sto / *Low x2 / Gar) -7/Garrison (discovered 3 exits: *Fac x3) -6/Factory (discovered 3 exits: *Low / Gar / Gar) -6/Garrison -5/Factory -5/Garrison -5/Factory (discovered 4 exits: Upp x2 / *Ext x2) -5/Extension (discovered 3 exits: *Fac x2 / *Cet) -5/Cetus (discovered 2 exits: *Fac / *Arc) -5/Archives -5/Hub_04(d) (discovered 5 exits: *Fac x4 / Gar) History --------- Turn | Location | Event 1 | -11/Scrapyard | Upgraded with Propulsion slot (x1) 1 | -11/Scrapyard | Upgraded with Utility slot (x1) 1 | -11/Scrapyard | Upgraded with Weapon slot (x1) 13 | -11/Scrapyard | Discovered new exit (range 15) 2748 | -11/Scrapyard | Assembled infested the area 4280 | -11/Scrapyard | Entered Materials 4308 | -10/Materials | Build established: Scavenger-Mutant 4434 | -10/Materials | Discovered new exit (range 14) 5125 | -10/Materials | Reached level 2 5147 | -10/Materials | Upgraded with Utility slot (x1) 5147 | -10/Materials | Upgraded with Weapon slot (x1) 5159 | -10/Materials | Discovered new exit (range 12) 5159 | -10/Materials | Identified exit to Mines 5280 | -10/Materials | Discovered new exit (range 17) 5466 | -10/Materials | Discovered new exit (range 17) 5507 | -10/Materials | Central database locked down 5571 | -10/Materials | Repaired Cooling System 5660 | -10/Materials | Entered Mines 5660 | -10/Mines | Accompanied by 1 ally 5662 | -10/Mines | Reached level 3 5663 | -10/Mines | Learned location of Zion (-6) 5664 | -10/Mines | Upgraded with Utility slot (x1) 5673 | -10/Mines | Met a Derelict bent on vengeance 5686 | -10/Mines | Learned 2 Materials zone layouts 5697 | -10/Mines | Received a Rocket Launcher from a helpful Derelict 5801 | -10/Mines | Discovered new exit (range 13) 5820 | -10/Mines | Discovered new exit (range 15) 6117 | -10/Mines | Entered Materials 6117 | -9/Materials | Accompanied by 1 ally 6118 | -9/Materials | Identified exit to Materials 6119 | -9/Materials | Reached level 4 6119 | -9/Materials | Upgraded with Utility slot (x1) 6183 | -9/Materials | Repaired Lgt. Armor Plating 6203 | -9/Materials | Discovered new exit (range 5) 6206 | -9/Materials | Reached level 5 6320 | -9/Materials | Discovered exit to Materials (range 16) 6361 | -9/Materials | Upgraded with Utility slot (x1) 6446 | -9/Materials | Reached level 6 6474 | -9/Materials | Discovered new exit (range 14) 6490 | -9/Materials | Destroyed 7 combat bots 6544 | -9/Materials | Central database locked down 6545 | -9/Materials | Build established: Scavenger-Tank 6694 | -9/Materials | Reached level 7 6717 | -9/Materials | Identified exit to Mines 6857 | -9/Materials | Core integrity fell below 50% 6896 | -9/Materials | Destroyed 9 combat bots 6944 | -9/Materials | Repaired Lgt. Armor Plating 6972 | -9/Materials | Repaired Lgt. Armor Plating 7057 | -9/Materials | Reached level 8 7066 | -9/Materials | Upgraded with Utility slot (x1) 7608 | -9/Materials | Entered Mines 7614 | -9/Mines | Reached level 9 7649 | -9/Mines | Met a Derelict shopkeep closing up shop 7774 | -9/Mines | Discovered exit to Materials (range 4) 7885 | -9/Mines | A weapon hastily lodged in a ceiling crevice suddenly fell to the ground 7912 | -9/Mines | Learned Materials stockpile data 7926 | -9/Mines | Assembled infested the area 7994 | -9/Mines | Discovered new exit (range 15) 8058 | -9/Mines | Discovered exit to Materials (range 17) 8103 | -9/Mines | Assisted by bots powering up and referring to "LRC-V3" 8154 | -9/Mines | Learned Materials machine intel 8420 | -9/Mines | Deemed a non-threat by the Exiles lab entrance 8431 | -9/Mines | Entered Exiles 8431 | -9/Exiles | Accompanied by 3 allies 8454 | -9/Exiles | Discovered new exit (range 16) 8519 | -9/Exiles | Met 8R-AWN 8545 | -9/Exiles | Met EX-HEX 8607 | -9/Exiles | Met EX-DEC 8682 | -9/Exiles | Met EX-BIN 8706 | -9/Exiles | Aligned with FarCom system 8708 | -9/Exiles | Given EX-Vault access code 8750 | -9/Exiles | Opened EX-Vault 8769 | -9/Exiles | Found Field Lobotomy Kit 8806 | -9/Exiles | Warned to stay clear of 0b10 Research branches 9075 | -9/Exiles | Build established: Scavenger-Mutant 9118 | -9/Exiles | Found Longsword +1 9428 | -9/Exiles | Attacked by the Exiles 9549 | -9/Exiles | Destroyed 8R-AWN 9556 | -9/Exiles | Found 8R-AWN's Boregun 9561 | -9/Exiles | Found 8R-AWN's Boregun 9936 | -9/Exiles | Found Exp. Targeting Computer 9942 | -9/Exiles | Found 8R-AWN's Armor/EX 10276 | -9/Exiles | Destroyed EX-HEX 10315 | -9/Exiles | Destroyed EX-DEC 10397 | -9/Exiles | Destroyed EX-BIN 10725 | -9/Exiles | Found Deploy-a-Sentry 10815 | -9/Exiles | Discovered new exit (range 10) 10853 | -9/Exiles | Stole two prototypes: Longsword +1, Field Lobotomy Kit 10853 | -9/Exiles | Entered Mines 10853 | -8/Mines | Accompanied by 3 allies 10860 | -8/Mines | Discovered exit to Materials (range 11) 10911 | -8/Mines | Reached level 10 10912 | -8/Mines | Upgraded with Power slot (x1) 10912 | -8/Mines | Upgraded with Propulsion slot (x1) 11165 | -8/Mines | Discovered exit to Materials (range 9) 11433 | -8/Mines | Entered Materials 11435 | -8/Materials | Loaded intel: 50 machine locations 11435 | -8/Materials | Reached level 11 11577 | -8/Materials | Identified exit to Garrison 11704 | -8/Materials | Reached level 12 11790 | -8/Materials | Repaired Arc Projector 11879 | -8/Materials | Discovered new exit (range 9) 12004 | -8/Materials | Central database locked down 12067 | -8/Materials | Upgraded with Utility slot (x1) 12067 | -8/Materials | Upgraded with Weapon slot (x1) 12159 | -8/Materials | Discovered new exit (range 15) 12249 | -8/Materials | Reached level 13 12558 | -8/Materials | Entered Garrison 12626 | -8/Garrison | Triggered checkpoint 12649 | -8/Garrison | Garrison Relay disabled 12730 | -8/Garrison | Triggered checkpoint 12766 | -8/Garrison | Discovered new exit (range 10) 12800 | -8/Garrison | Triggered checkpoint 12843 | -8/Garrison | Discovered new exit (range 8) 12847 | -8/Garrison | Identified exit to Materials 12852 | -8/Garrison | Installed Relay Interface Framework 12883 | -8/Garrison | Entered Materials 13153 | -8/Materials | Discovered new exit (range 16) 13215 | -8/Materials | Reached level 14 13301 | -8/Materials | Identified exit to Garrison 13392 | -8/Materials | Entered Garrison 13432 | -8/Garrison | Triggered checkpoint 13472 | -8/Garrison | Triggered checkpoint 13516 | -8/Garrison | Garrison Relay disabled 13537 | -8/Garrison | Discovered new exit (range 16) 13548 | -8/Garrison | Identified exit to Factory 13553 | -8/Garrison | Expanded RIF knowledge: Threat Obfuscation 13619 | -8/Garrison | Build established: Scavenger-Ninja 13634 | -8/Garrison | Entered Factory 13654 | -7/Factory | Reached level 15 13952 | -7/Factory | Discovered new exit (range 16) 14393 | -7/Factory | Identified exit to Garrison 14654 | -7/Factory | Discovered new exit (range 9) 14662 | -7/Factory | Identified exit to Factory 14726 | -7/Factory | Reached level 16 14735 | -7/Factory | Garrison activated, responded to threat 14896 | -7/Factory | Discovered exit to Factory (range 9) 14925 | -7/Factory | Repaired Imp. Shield Generator 15225 | -7/Factory | Identified exit to Garrison 15379 | -7/Factory | Identified exit to Garrison 15385 | -7/Factory | Discovered exit to Factory (range 9) 15550 | -7/Factory | Discovered exit to Factory (range 4) 15635 | -7/Factory | Discovered new exit (range 16) 15759 | -7/Factory | Fabricated Powered Armor? 15948 | -7/Factory | Local fabrication network quarantined 16033 | -7/Factory | Fabricated Cold Fusion Reactor (x1) 16140 | -7/Factory | Discovered new exit (range 16) 16275 | -7/Factory | Entered Garrison 16342 | -7/Garrison | Triggered checkpoint 16357 | -7/Garrison | Garrison Relay disabled 16424 | -7/Garrison | Garrison Relay disabled 16430 | -7/Garrison | Triggered checkpoint 16475 | -7/Garrison | Spotted B-75 Beast 16475 | -7/Garrison | Spotted B-75 Beast 16492 | -7/Garrison | Triggered checkpoint 16640 | -7/Garrison | Discovered new exit (range 13) 16674 | -7/Garrison | Identified exit to Factory 16747 | -7/Garrison | Discovered exit to Factory (range 10) 16756 | -7/Garrison | Expanded RIF knowledge: Threat Obfuscation 16782 | -7/Garrison | Entered Factory 16793 | -7/Factory | Identified exit to Garrison 16828 | -7/Factory | Identified exit to Storage 16828 | -7/Factory | Identified exit to Lower Caves 16828 | -7/Factory | Reached level 17 16828 | -7/Factory | Upgraded with Utility slot (x1) 16828 | -7/Factory | Garrison activated, responded to threat 17115 | -7/Factory | Build established: Scavenger-Assassin 17177 | -7/Factory | Allied Derelicts emerged from ambush trap array 17316 | -7/Factory | Assembled infested Garrison Access 17454 | -7/Factory | Discovered exit to Factory (range 6) 17708 | -7/Factory | Discovered exit to Factory (range 15) 18285 | -7/Factory | Entered Garrison 18291 | -7/Garrison | Expanded RIF knowledge: Program Shield 18338 | -7/Garrison | Triggered checkpoint 18382 | -7/Garrison | Garrison Relay disabled 18426 | -7/Garrison | Triggered checkpoint 18585 | -7/Garrison | Discovered exit to Factory (range 16) 18726 | -7/Garrison | Triggered checkpoint 18782 | -7/Garrison | Triggered checkpoint 18808 | -7/Garrison | Garrison Relay disabled 18852 | -7/Garrison | Discovered exit to Factory (range 11) 18904 | -7/Garrison | Triggered checkpoint 19023 | -7/Garrison | Garrison Relay disabled 19051 | -7/Garrison | Discovered exit to Factory (range 16) 19248 | -7/Garrison | Triggered checkpoint 19274 | -7/Garrison | Garrison Relay disabled 19327 | -7/Garrison | Entered Factory 19329 | -6/Factory | Reached level 18 19467 | -6/Factory | Identified exit to Garrison 19828 | -6/Factory | Identified exit to Garrison 19860 | -6/Factory | Discovered new exit (range 17) 19889 | -6/Factory | Identified exit to Lower Caves 19935 | -6/Factory | Entered Garrison 19935 | -6/Garrison | Accompanied by 3 allies 19938 | -6/Garrison | Expanded RIF knowledge: Command Fork 19991 | -6/Garrison | Reached level 19 20006 | -6/Garrison | Spotted B-75 Beast 20014 | -6/Garrison | Triggered checkpoint 20014 | -6/Garrison | Triggered checkpoint 20083 | -6/Garrison | Destroyed B-75 Beast 20114 | -6/Garrison | Destroyed 9 combat bots 20131 | -6/Garrison | Discovered new exit (range 9) 20137 | -6/Garrison | Build established: Scavenger-Ninja 20141 | -6/Garrison | Identified exit to Factory 20154 | -6/Garrison | Phase Generator disabled 20235 | -6/Garrison | Entered Factory 20237 | -5/Factory | Reached level 20 20321 | -5/Factory | Identified exit to Garrison 20322 | -5/Factory | Entered Garrison 20325 | -5/Garrison | Expanded RIF knowledge: Patrol Navigation 20340 | -5/Garrison | Triggered checkpoint 20367 | -5/Garrison | Garrison Relay disabled 20369 | -5/Garrison | Upgraded with Utility slot (x1) 20425 | -5/Garrison | Spotted B-75 Beast 20535 | -5/Garrison | Reached level 21 20575 | -5/Garrison | Triggered checkpoint 20577 | -5/Garrison | Assimilated Beast 6a with formatsys_high 20671 | -5/Garrison | Garrison Relay disabled 20674 | -5/Garrison | Triggered checkpoint 20716 | -5/Garrison | Discovered new exit (range 15) 20723 | -5/Garrison | Identified exit to Factory 20725 | -5/Garrison | Entered Factory 20847 | -5/Factory | Identified exit to Upper Caves 20847 | -5/Factory | Identified exit to Extension 20925 | -5/Factory | Local fabrication network quarantined 21004 | -5/Factory | Fabricated Imp. Linear Gravjet (x2) 21025 | -5/Factory | First assault squad dispatched 21058 | -5/Factory | Upgraded with Power slot (x1) 21618 | -5/Factory | Entered Extension 21783 | -5/Extension | Rescued A7 21790 | -5/Extension | Reached level 22 21898 | -5/Extension | Rescued a captive Derelict 21903 | -5/Extension | Rescued a captive Derelict 21929 | -5/Extension | Spotted B-75 Beast 21939 | -5/Extension | Spotted B-75 Beast 21963 | -5/Extension | Allies destroyed B-75 Beast 21965 | -5/Extension | Allies destroyed B-75 Beast 21996 | -5/Extension | Discovered new exit (range 5) 22257 | -5/Extension | Build established: Scavenger-Assassin 22438 | -5/Extension | Destroyed A7 22440 | -5/Extension | Extracted ID and sensor layout for unrecognized location from A7's data core 22445 | -5/Extension | Found Med. Regenerative Plating 22523 | -5/Extension | Upgraded with Propulsion slot (x1) 22549 | -5/Extension | Discovered new exit (range 10) 22550 | -5/Extension | Discovered new exit (range 6) 22555 | -5/Extension | Identified exit to Cetus 22555 | -5/Extension | Entered Cetus 22562 | -5/Cetus | Spotted Cetus Guard 22563 | -5/Cetus | Spotted Cetus Guard 22564 | -5/Cetus | Spotted Cetus Guard 22564 | -5/Cetus | Spotted Cetus Guard 22584 | -5/Cetus | Destroyed Cetus Guard 22588 | -5/Cetus | Destroyed Cetus Guard 22603 | -5/Cetus | Core integrity fell below 50% 22604 | -5/Cetus | Destroyed Cetus Guard 22608 | -5/Cetus | Destroyed Cetus Guard 22658 | -5/Cetus | Discovered new exit (range 16) 22669 | -5/Cetus | Spotted Cetus Guard 22669 | -5/Cetus | Spotted Cetus Guard 22709 | -5/Cetus | Spotted Cetus Guard 22713 | -5/Cetus | Destroyed Cetus Guard 22715 | -5/Cetus | Spotted Cetus Guard 22719 | -5/Cetus | Destroyed Cetus Guard 22725 | -5/Cetus | Destroyed Cetus Guard 22729 | -5/Cetus | Destroyed Cetus Guard 22756 | -5/Cetus | Discovered new exit (range 16) 22759 | -5/Cetus | Met Revision 17 22785 | -5/Cetus | Identified exit to Archives 22786 | -5/Cetus | Entered Archives 22834 | -5/Archives | Build established: Scavenger-Ninja 22874 | -5/Archives | Discovered new exit (range 17) 22886 | -5/Archives | Identified exit to Hub_04(d) 23610 | -5/Archives | Entered Hub_04(d) 23610 | -5/Hub_04(d) | Discovered new exit (range 11) 23612 | -5/Hub_04(d) | Reached level 23 23635 | -5/Hub_04(d) | Identified exit to Garrison 23694 | -5/Hub_04(d) | Spotted B-75 Beast 23754 | -5/Hub_04(d) | Discovered new exit (range 12) 23825 | -5/Hub_04(d) | Discovered new exit (range 12) 23843 | -5/Hub_04(d) | Identified exit to Factory 23920 | -5/Hub_04(d) | Discovered exit to Factory (range 15) 24135 | -5/Hub_04(d) | Network Hub disabled 24135 | -5/Hub_04(d) | Network Hub disabled 24158 | -5/Hub_04(d) | Spotted Lightning 24164 | -5/Hub_04(d) | Spotted Lightning 24168 | -5/Hub_04(d) | Spotted Lightning 24180 | -5/Hub_04(d) | Network Hub disabled 24184 | -5/Hub_04(d) | Core integrity fell below 20% 24190 | -5/Hub_04(d) | Destroyed by Lightning with EMDS Last Messages --------------- Trojan loaded successfully. Testing... Tracking enabled and active. >>Prototypes Downloading prototype IDs... Exp. Signal Interpreter Exp. Flexi-carbon Leg 24180_ ALERT: Network intrusion management efficiency at 65%. >>Force(Sabotage) SYSTEM_VULNERABLE[Network Hub] NETWORK_OVERLOAD COORDINATES_RETRIEVED 24180_ ALERT: Suspicious activity at Terminal H001. Dispatching Investigation squad. 24182_ EMDS Slug penetrates Wall. 24182_ Critical hit. 24183_ EMDS Slug penetrates Door. 24183_ EMDS Slug penetrates Wall. 24185_ Critical hit. 24185_ EMDS Slug penetrates Wall. Map ----- +----------------------------------------------------+ | ???###################??#??#### | | ##?# [!%###?#?# "" | | ???# ""G"" """ """=[##????## | | ???# ">" ######## | | #??# " " """ """ # + | | ??## # ##+# | | ???#########+#####+## | | ??#?#?#??#?# | | ???#???#???# | | ?##?######## | | ?#?### | | #??#?# ##+#####+###### | | ###### # ########### | | # # # !! ##?###???## | | # # #! ! # ? ##?## | | # # # ##?#? #### | | # + ##+########?##? #### | | # # % # ^ #??## ?### | | # | # # ^!!^ ########### | | # + % + !!] ## """T | | # # %# !!] ## """ | | # # g g # ## """ | | # + g # ## | | # # gk###################+# | | # # # # | | # #@ # + ! | | ###### # # | | #? ?## #! #! | | #? ?## # ## # | | ?#???# #####+#####/###### # | | ######+##g##### ### ##### # | | # " g # | | # """ #hh w # | | # #h ######## ##### # | | #"" # i###?#####+####### # | | #"" # ##### ### # | | #"" " #####"""" #?# # | | #T # #####"""" ### # | | #"" # #####"""" ### # | | #"" # #?###"""" #?# # | | #"" + ##### ### # | | # # #?### ! ### | | ####+#"## #?#?# + | | ???#^^T |###?#+###########+## | | #??#^^^ ##?## ###?# | | ??##^^^ #?### ##?## | | ##?# // *##### ##### | | ?#BB /* ##?## #?#?# = | | ?#BB [ ##### #?#?# =%! | | #?## ! ###?# =!! | +----------------------------------------------------+ Best States ------------- Heat Dissipation 63 Energy Generation 58 Energy Capacity 1135 Matter Stores 500 Matter Capacity 500 Sight Range 21 Robot Scan Range 18 Terrain Scan Range 20 Terrain Scan Density 110 Jamming Range 16 Armor Coverage 1000 Resistance: EX 90 Weapon Cycling 25 Melee Speed Boost 20 Evasion (%) 57 Core Analysis 10 Armor Integrity Analysis 50 Recoil Reduction 2 Offensive Hacking 43 Defensive Hacking 24 Relay Coupler Types 24 Relay Coupler Value 1 Item Schematics ----------------- Cmb. Airjet | -9/Materials | Scanalyzed Imp. EM Shotgun | -9/Materials | Scanalyzed Imp. Medium Laser | -9/Materials | Scanalyzed Datajack | -9/Materials | Scanalyzed Lgt. Cannon | -9/Materials | Extracted Exp. Targeting Computer | -8/Materials | Scanalyzed Adv. Weapon Cycler | -8/Materials | Scanalyzed Imp. Datajack | -8/Materials | Scanalyzed Mak. Spear | -8/Materials | Scanalyzed Microactuators | -7/Factory | Hacked Imp. Remote Datajack | -7/Factory | Hacked Hvy. Machine Gun | -7/Factory | Hacked Powered Armor | -7/Factory | Hacked Launcher Loader | -7/Factory | Hacked Cold Fusion Reactor | -7/Factory | Scanalyzed Imp. Gravmag System | -7/Factory | Hacked Arm. Medium Treads | -7/Factory | Hacked Linear Gravjet | -6/Factory | Hacked Imp. Linear Gravjet | -5/Factory | Downloaded Particle Reactor | -5/Factory | Hacked Overload Amplifier | -5/Factory | Hacked Centrium Wheel | -5/Factory | Hacked Adv. Force Field | -5/Extension | Hacked Imp. Powered Armor | -5/Extension | Hacked Exp. Terrain Scanner | -5/Extension | Hacked Exp. Signal Interpreter | -5/Extension | Hacked Nanoactuators | -5/Extension | Hacked Gamma Bomb Array | -5/Hub_04(d) | Hacked System Restoration Module | -5/Hub_04(d) | Hacked Robot Schematics ------------------ M-13 Machinist | -10/Materials | Hacked O-16 Technician | -10/Materials | Hacked L-41 Fighter | -7/Factory | Hacked S-27 Virus | -7/Factory | Hacked T-07 Excavator | -7/Factory | Hacked Fabricated ------------ Powered Armor | x2 | -7/Factory Cold Fusion Reactor | x1 | -7/Factory Imp. Linear Gravjet | x2 | -5/Factory | Preloaded Alien Tech Used ----------------- None Achievements -------------- Left-hand Path Challenges ------------ None RPGLIKE | -11 -10 -10 -9 -9 -9 -8 -8 -8 -8 -8 -7 -7 -7 -7 -6 -6 -5 -5 -5 -5 -5 -5 -5 --------- Run | Scr Mat Min Mat Min Exi Min Mat Gar Mat Gar Fac Gar Fac Gar Fac Gar Fac Gar Fac Ext Cet Arc Hub Levels Raised 22 | . 1 1 5 1 . 1 3 . 1 . 2 . 1 . 1 1 1 1 . 1 . . 1 XP Earned 36471 | 3000 2945 1200 7444 814 169 2029 3676 738 604 254 3367 742 437 531 1583 817 1773 1258 314 1368 406 246 756 XP Spent 33720 | 2900 1600 1100 7895 1250 . 1300 3400 1500 1375 . 1650 . 2600 . 600 . . 4650 800 1100 . . . Upgrades 53 | 10 2 1 17 1 . 2 2 1 6 . 5 . 1 . 1 . . 2 1 1 . . . Power Slot 2 | . . . . . . 1 . . . . . . . . . . . . 1 . . . . Propulsion Slot 3 | 1 . . . . . 1 . . . . . . . . . . . . . 1 . . . Utility Slot 9 | 1 1 1 3 . . . 1 . . . . . 1 . . . . 1 . . . . . Weapon Slot 3 | 1 1 . . . . . 1 . . . . . . . . . . . . . . . . Core Integrity 6 | . . . 6 . . . . . . . . . . . . . . . . . . . . Heat Dissipation 2 | . . . 2 . . . . . . . . . . . . . . . . . . . . Energy Generation 1 | . . . . . . . . . . . 1 . . . . . . . . . . . . Mass Support 2 | 1 . . . . . . . . . . . . . . 1 . . . . . . . . Inventory Capacity 7 | 2 . . 2 1 . . . 1 . . . . . . . . . 1 . . . . . Sight Range 1 | 1 . . . . . . . . . . . . . . . . . . . . . . . Sensor Range 9 | . . . 3 . . . . . 5 . 1 . . . . . . . . . . . . Terrain Scan Density 1 | 1 . . . . . . . . . . . . . . . . . . . . . . . Melee Accuracy 2 | . . . . . . . . . . . 2 . . . . . . . . . . . . Hack Attack % 3 | 1 . . 1 . . . . . . . 1 . . . . . . . . . . . . Hack Defense % 2 | 1 . . . . . . . . 1 . . . . . . . . . . . . . . Protomatter Created 4558 | 35 280 11 352 42 92 93 438 175 255 45 556 214 218 313 211 199 89 318 105 272 182 . 63 Integrity Restored 11450 | 105 709 . 879 390 276 294 1050 263 140 273 1236 527 525 664 381 430 123 939 503 1008 546 . 189 Core 8530 | 105 534 . 731 291 276 294 718 188 95 193 903 322 391 461 294 424 123 657 391 404 546 . 189 Parts 2920 | . 175 . 148 99 . . 332 75 45 80 333 205 134 203 87 6 . 282 112 604 . . . Protomatter Decayed 1587 | 48 39 . 22 . . . 141 94 158 . 228 27 116 85 81 146 48 . 139 215 . . . Game ------ Seed SeismicHeavyCarapace Manual? 0 Play Time 03:26:48 Cumulative 320.7 hours Start 2020.10.05 @ 11:00:41 End 2020.10.05 @ 16:12:52 Sessions 1 Manual Loads 0 Difficulty Rogue Special Mode Winter2019/RPGLIKE Game No. 125 Rogue 125 Adventurer 0 Explorer 0 Win Type - Total 4 Types 3/0/0/1/0/0/0/0/0 Lore% 84 Gallery% 90 Achievement% 72 Wizard Run 0 Options --------- ASCII 0 Keyboard 0 Movement Numpad Keybinds 0 Fullscreen 1 Font 18/SmallcapsGlow Map View 76x50 Tactical HUD 1 Map Filters NONE Filters NONE Steam 1 RUN: a4c4fbc4-bf7a-49c4-921b-24cbe970a8dd